fUSD/lending_fUSD_20240702
["ID","MTS","AMOUNT","RATE_DAILY","PERIOD"]
[330884007,1719899432600,-156.28,0.0001557,2]
[330884008,1719899432610,-1629.68403831,0.00015579,2]
[330884009,1719899432619,-462.48568697,0.00015579,2]
[330884010,1719899432628,-661.02099471,0.00015579,2]
[330884011,1719899432637,-159.73889536,0.00015579,2]
[330884012,1719899432647,-1629.68403831,0.00015579,2]
[330884013,1719899432656,-264.56470044,0.00015579,2]
[330884014,1719899432666,-155.76801157,0.00015579,2]
[330884015,1719899432675,-155.10723618,0.00015579,2]
[330884016,1719899432685,-163.67705412,0.00015579,2]
[330884017,1719899432695,-346.07679139,0.00015579,2]
[330884018,1719899432704,-475.60062672,0.00015579,2]
[330884019,1719899432713,-300.0,0.00015612,2]
[330884020,1719899432722,-156.28,0.00015616,2]
[330884021,1719899432731,-449.06925902,0.0001565,2]
[330884022,1719899432740,-156.28,0.00015662,2]
[330884023,1719899432749,-10000.0,0.00015681,2]
[330884024,1719899432758,-8476.0,0.000157,5]
[330884025,1719899432767,-2751.0,0.00015709,2]
[330884026,1719899432776,-56357.02239286,0.00015794,2]
[330884027,1719899432785,-7209.06703356,0.00015794,2]
[330884028,1719899432795,-167.0,0.00015831,2]
[330884029,1719899432804,-383.28543932,0.00015832,2]
[330884030,1719899432813,-209.53321127,0.00015832,2]
[330884031,1719899432822,-302.60019235,0.00015832,2]
[330884032,1719899432831,-158.27105518,0.00015832,2]
[330884033,1719899432840,-389.07849929,0.00015832,2]
[330884034,1719899432850,-250.0,0.00015855,2]
[330884035,1719899432859,-163.001551,0.0001589,2]
[330884036,1719899432868,-500.0,0.00015924,2]
[330884037,1719899432876,-2000.0,0.00016,2]
[330884038,1719899432885,-203.15956,0.00016,2]
[330884039,1719899432895,-501.0,0.00016,2]
[330884040,1719899432904,-2000.0,0.0001601,2]
[330884041,1719899432913,-2000.0,0.0001602,2]
[330884042,1719899432923,-3821.7247,0.0001603,2]
[330884043,1719899432933,-325.33,0.00016097,2]
[330884044,1719899432946,-753.65,0.00016107,2]
[330884045,1719899432955,-150.0,0.00016143,2]
[330884046,1719899432968,-28820.47675594,0.000163,2]
[330884047,1719899432978,-155.0,0.00016315,2]
[330884048,1719899432988,-3377.10994187,0.00016328,2]
[330884049,1719899432997,-3000.0,0.00016354,2]
[330884050,1719899433006,-11951.1797662,0.00016389,2]
[330884051,1719899433017,-1138.3119861,0.00016389,2]
[330884052,1719899433026,-2499.8835659,0.00016389,2]
[330884053,1719899433035,-2000.0,0.000164,2]
[330884054,1719899433044,-200.0,0.000164,2]
[330884055,1719899433054,-6848.80838717,0.000164,2]
[330884056,1719899433063,-4625.6290197,0.000164,2]
[330884057,1719899433073,-19823.10043926,0.000164,2]
[330884058,1719899433083,-24643.95852302,0.000164,2]
[330884059,1719899433093,-300.41202061,0.000164,2]
[330884060,1719899433102,-800.0,0.00016472,2]
[330884061,1719899433111,-1759.44352292,0.00016566,2]
[330884062,1719899433121,-432.96,0.00016657,2]
[330884063,1719899433130,-186.66,0.00016665,2]
[330884064,1719899433139,-250.0,0.00016691,2]
[330884065,1719899433148,-163.001551,0.00016712,2]
[330884066,1719899433158,-12341.02692272,0.00016737,2]
[330884067,1719899433177,-315.0,0.00016737,2]
[330884068,1719899433190,-860.35582076,0.00016737,2]
[330884069,1719899433201,-412.18944111,0.00016737,2]
[330884070,1719899433212,-10275.38302335,0.00016737,2]
[330884071,1719899437545,-3816.05315889,0.00013743,2]
[330884072,1719899437557,-785.23100942,0.00013743,2]
[330884073,1719899437568,-254.99999,0.00013743,2]
[330884074,1719899437649,-674.95184169,0.00013743,2]
[330884075,1719899437659,-387.00374484,0.00015166,2]
[330884076,1719899437671,-536.3194009,0.00015166,2]
[330884077,1719899437683,-339.92329076,0.00015166,2]
[330884078,1719899437693,-479.31375256,0.00015681,2]
[330884079,1719899437703,-4279.37170202,0.00016737,2]
[330884080,1719899437715,-3302.22791311,0.00016737,2]
[330884081,1719899437727,-584.18096118,0.00016737,2]
[330884082,1719899437739,-1275.36257132,0.00016737,2]
[330884083,1719899437751,-290.31856456,0.00016737,2]
[330884084,1719899437767,-765.33275581,0.00016737,2]
[330884085,1719899437778,-1651.94935281,0.00016737,2]
[330884086,1719899437790,-1145.08013776,0.00016737,2]
[330884087,1719899437801,-2676.10473281,0.00016737,2]
[330884088,1719899437813,-2317.76597423,0.00016737,2]
[330884089,1719899437824,-2604.69232305,0.00016737,2]
[330884090,1719899437836,-11260.68019626,0.00016737,2]
[330884091,1719899437845,-7209.06703356,0.00016737,2]
[330884092,1719899437855,-164.1627663,0.00016741,2]
[330884093,1719899437864,-500.0,0.00016746,2]
[330884094,1719899437875,-500.0,0.00016746,2]
[330884095,1719899437884,-183.85954948,0.0001676,2]
[330884096,1719899437894,-150.301,0.000168,2]
[330884097,1719899437903,-259.277,0.000168,2]
[330884098,1719899437913,-150.108,0.000168,2]
[330884099,1719899437922,-208.2,0.00016808,2]
[330884100,1719899437932,-201.99281463,0.0001681,2]
[330884101,1719899437946,-173.99767215,0.0001681,2]
[330884102,1719899437956,-10604.35396762,0.00016855,2]
[330884103,1719899437971,-1392.37172164,0.00016855,2]
[330884104,1719899437983,-4440.864085,0.00016855,2]
[330884105,1719899437995,-12382.88698157,0.00016855,2]
[330884106,1719899438004,-150.0,0.00016875,2]
[330884107,1719899438014,-167.0,0.00016876,2]
[330884108,1719899438023,-1000.0,0.00016886,2]
[330884109,1719899438033,-1000.0,0.00016888,2]
[330884110,1719899438043,-609.0,0.00016911,2]
[330884111,1719899438052,-300.0,0.00016982,2]
[330884113,1719899438062,-151.0,0.00016986,2]
[330884116,1719899438072,-151.0,0.00016986,2]
[330884117,1719899438081,-151.0,0.00016986,2]
[330884119,1719899438091,-151.0,0.00016986,2]
[330884121,1719899438100,-151.0,0.00017,2]
[330884123,1719899438109,-151.0,0.00017,2]
[330884125,1719899438119,-150.0,0.00017014,2]
[330884127,1719899438128,-150.0,0.00017014,2]
[330884129,1719899438138,-150.0,0.00017014,2]
[330884131,1719899438147,-150.0,0.00017014,2]
[330884133,1719899438156,-150.0,0.00017014,2]
[330884135,1719899438165,-150.0,0.00017014,2]
[330884136,1719899438176,-532.79073529,0.0001702,2]
[330884137,1719899438187,-267.20926471,0.0001702,2]
[330884138,1719899438197,-208.2,0.00017108,2]
[330884139,1719899438206,-1302.324,0.00017135,2]
[330884140,1719899438215,-278.61742149,0.00017135,2]
[330884141,1719899438233,-1236.89030779,0.00017135,2]
[330884142,1719899438245,-141.49227072,0.00017135,2]
[330884143,1719899438254,-463.516,0.00017135,2]
[330884144,1719899438261,-1840.559,0.00017135,2]
[330884145,1719899438270,-637.701,0.00017135,2]
[330884146,1719899438279,-459.823,0.00017135,2]
[330884147,1719899438287,-196.85,0.00017135,2]
[330884148,1719899438296,-813.0,0.00017135,2]
[330884149,1719899438305,-444.004,0.00017135,2]
[330884150,1719899438314,-161.303,0.00017135,2]
[330884151,1719899438323,-1304.0,0.00017135,2]
[330884152,1719899438332,-2416.0,0.00017135,2]
[330884153,1719899438341,-557.028,0.00017135,2]
[330884154,1719899438350,-303.43,0.00017135,2]
[330884155,1719899438359,-2028.05,0.00017135,2]
[330884156,1719899438368,-3205.0,0.00017135,2]
[330884157,1719899438377,-5175.0,0.00017135,2]
[330884158,1719899438386,-1663.0,0.00017135,2]
[330884159,1719899438395,-5808.0,0.00017135,2]
[330884160,1719899438407,-353.167,0.00017135,2]
[330884161,1719899438417,-1220.296,0.00017135,2]
[330884162,1719899438426,-38221.0,0.00017135,2]
[330884163,1719899438436,-150.0,0.00017135,2]
[330884164,1719899438447,-5942.26883463,0.00017233,2]
[330884165,1719899438456,-352.7657437,0.00017239,2]
[330884166,1719899438466,-6284.2284671,0.0001726,2]
[330884167,1719899438476,-500.0,0.00017294,2]
[330884168,1719899438486,-167.0,0.00017399,2]
[330884169,1719899438495,-208.2,0.00017407,2]
[330884170,1719899438505,-28820.47675583,0.00017409,2]
[330884171,1719899438515,-156.3380645,0.00017423,2]
[330884172,1719899438524,-163.001551,0.00017534,2]
[330884173,1719899438534,-3377.10994187,0.00017542,2]
[330884174,1719899438543,-150.0,0.00017562,2]
[330884175,1719899438553,-150.0,0.00017562,2]
[330884176,1719899438563,-199.93267262,0.00017562,2]
[330884177,1719899438572,-250.0,0.00017562,2]
[330884178,1719899438582,-250.0,0.00017562,2]
[330884179,1719899438592,-250.0,0.00017562,2]
[330884180,1719899438601,-204.92661426,0.00017562,2]
[330884181,1719899438611,-250.0,0.00017562,2]
[330884182,1719899438620,-500.0,0.00017568,2]
[330884183,1719899438630,-56357.02239286,0.00017681,2]
[330884184,1719899438639,-7209.06703356,0.00017681,2]
[330884185,1719899438649,-314.70189537,0.00017703,2]
[330884186,1719899438658,-208.2,0.00017707,2]
[330884187,1719899438668,-1000.0,0.00017808,2]
[330884188,1719899438678,-1000.0,0.00017808,2]
[330884189,1719899438687,-1000.0,0.00017808,2]
[330884190,1719899438698,-1000.0,0.00017808,2]
[330884191,1719899438707,-1000.0,0.00017808,2]
[330884192,1719899438716,-1000.0,0.00017808,2]
[330884193,1719899438726,-1000.0,0.00017808,2]
[330884194,1719899438735,-1000.0,0.00017808,2]
[330884195,1719899438745,-1000.0,0.00017808,2]
[330884196,1719899438755,-1000.0,0.00017808,2]
[330884197,1719899438764,-1000.0,0.00017808,2]
[330884198,1719899438774,-1000.0,0.00017808,2]
[330884199,1719899438783,-1000.0,0.00017808,2]
[330884200,1719899438792,-1000.0,0.00017808,2]
[330884201,1719899438802,-1000.0,0.00017808,2]
[330884202,1719899438811,-1000.0,0.00017808,2]
[330884203,1719899438821,-1000.0,0.00017808,2]
[330884204,1719899438830,-1000.0,0.00017808,2]
[330884205,1719899438840,-1000.0,0.00017808,2]
[330884206,1719899438850,-1000.0,0.00017808,2]
[330884207,1719899438859,-1000.0,0.00017808,2]
[330884208,1719899438870,-1000.0,0.00017808,2]
[330884209,1719899438880,-1000.0,0.00017808,2]
[330884210,1719899438890,-1000.0,0.00017808,2]
[330884211,1719899438900,-1000.0,0.00017808,2]
[330884212,1719899438909,-1000.0,0.00017808,2]
[330884213,1719899438919,-1000.0,0.00017808,2]
[330884214,1719899438928,-1000.0,0.00017808,2]
[330884215,1719899438945,-1000.0,0.00017808,2]
[330884216,1719899438955,-1000.0,0.00017808,2]
[330884217,1719899438964,-1000.0,0.00017808,2]
[330884218,1719899438974,-1000.0,0.00017808,2]
[330884219,1719899438984,-1000.0,0.00017808,2]
[330884220,1719899438994,-1000.0,0.00017808,2]
[330884221,1719899439003,-1000.0,0.00017808,2]
[330884222,1719899439015,-1000.0,0.00017808,2]
[330884223,1719899439025,-1000.0,0.00017808,2]
[330884224,1719899439036,-1000.0,0.00017808,2]
[330884225,1719899439046,-1000.0,0.00017808,2]
[330884226,1719899439056,-1000.0,0.00017808,2]
[330884227,1719899439067,-1000.0,0.00017808,2]
[330884228,1719899439078,-1000.0,0.00017808,2]
[330884229,1719899439088,-1000.0,0.00017808,2]
[330884230,1719899439099,-1000.0,0.00017808,2]
[330884231,1719899439110,-1000.0,0.00017808,2]
[330884232,1719899439120,-1000.0,0.00017808,2]
[330884233,1719899439131,-1000.0,0.00017808,2]
[330884234,1719899439142,-1000.0,0.00017808,2]
[330884235,1719899439153,-1000.0,0.00017808,2]
[330884236,1719899439163,-1000.0,0.00017808,2]
[330884237,1719899439174,-1000.0,0.00017808,2]
[330884238,1719899439184,-1000.0,0.00017808,2]
[330884239,1719899439194,-1000.0,0.00017808,2]
[330884240,1719899439204,-1000.0,0.00017808,2]
[330884241,1719899439214,-1000.0,0.00017808,2]
[330884242,1719899439225,-1000.0,0.00017808,2]
[330884243,1719899439235,-1000.0,0.00017808,2]
[330884244,1719899439245,-1000.0,0.00017808,2]
[330884245,1719899439254,-1000.0,0.00017808,2]
[330884246,1719899439264,-1000.0,0.00017808,2]
[330884247,1719899439274,-1000.0,0.00017808,2]
[330884248,1719899439284,-1000.0,0.00017808,2]
[330884249,1719899439294,-1000.0,0.00017808,2]
[330884250,1719899439304,-1000.0,0.00017808,2]
[330884251,1719899439315,-1000.0,0.00017808,2]
[330884252,1719899439326,-1000.0,0.00017808,2]
[330884253,1719899439336,-1000.0,0.00017808,2]
[330884254,1719899439346,-1000.0,0.00017808,2]
[330884255,1719899439356,-1000.0,0.00017808,2]
[330884256,1719899439366,-1000.0,0.00017808,2]
[330884257,1719899439376,-1000.0,0.00017808,2]
[330884258,1719899439385,-1000.0,0.00017808,2]
[330884259,1719899439395,-1000.0,0.00017808,2]
[330884260,1719899439406,-1000.0,0.00017808,2]
[330884261,1719899439416,-452.0,0.00017808,2]
[330884262,1719899439426,-200.0,0.00017818,2]
[330884263,1719899439436,-254.97878824,0.00017842,2]
[330884264,1719899439448,-500.0,0.00017842,2]
[330884265,1719899439458,-325.33,0.00017886,2]
[330884266,1719899439470,-167.0,0.00017921,2]
[330884267,1719899439480,-28820.47675583,0.00017964,2]
[330884268,1719899439490,-155.16301536,0.00018,2]
[330884269,1719899439500,-370.5829158,0.00018,2]
[330884270,1719899439510,-185.90573716,0.00018,2]
[330884271,1719899439520,-200.0,0.00018,2]
[330884272,1719899439530,-208.2,0.00018006,2]
[330884273,1719899439540,-150.0,0.0001811,2]
[330884274,1719899439551,-150.0,0.0001811,2]
[330884275,1719899439560,-350.0,0.0001811,2]
[330884276,1719899439571,-366.97435514,0.0001811,2]
[330884277,1719899439580,-350.0,0.0001811,2]
[330884278,1719899439591,-350.0,0.0001811,2]
[330884279,1719899439600,-800.0,0.00018116,2]
[330884280,1719899439610,-164.1627663,0.00018158,2]
[330884281,1719899439620,-175.51921193,0.0001826,2]
[330884282,1719899439630,-208.2,0.00018306,2]
[330884283,1719899439650,-163.001551,0.00018356,2]
[330884284,1719899439661,-753.65,0.00018371,2]
[330884285,1719899439671,-500.0,0.0001839,2]
[330884286,1719899439681,-167.0,0.00018444,2]
[330884287,1719899439691,-167.0,0.00018444,2]
[330884288,1719899439701,-160.27103972,0.000185,2]
[330884289,1719899439711,-150.93580614,0.00018516,2]
[330884290,1719899439721,-18913.55935118,0.00018518,2]
[330884291,1719899439738,-6793.64778067,0.00018518,2]
[330884292,1719899439885,-151.0,0.00017135,2]
[330884293,1719899439895,-313.90580332,0.00018518,2]
[330884294,1719899439916,-454.18508886,0.00018518,2]
[330884295,1719899439927,-489.39067517,0.00018518,2]
[330884296,1719899440013,-435.67082283,0.00018518,2]
[330884297,1719899440026,-260.2322008,0.00018518,2]
[330884298,1719899440038,-298.00000008,0.00018518,2]
[330884299,1719899440050,-861.88503292,0.00018518,2]
[330884300,1719899440059,-155.31871665,0.00018523,2]
[330884301,1719899440069,-630.93491385,0.00018531,2]
[330884302,1719899440079,-666.60294918,0.00018537,2]
[330884303,1719899440089,-630.93491385,0.00018587,2]
[330884304,1719899440099,-150.0,0.00018592,2]
[330884305,1719899440108,-630.93491385,0.00018595,2]
[330884306,1719899440118,-160.27103972,0.00018596,2]
[330884307,1719899440127,-256.33362355,0.00018601,2]
[330884308,1719899440137,-208.2,0.00018605,2]
[330884309,1719899440147,-256.33362355,0.00018609,2]
[330884310,1719899440157,-183.85954948,0.0001862,2]
[330884311,1719899440167,-56357.02239286,0.00018625,2]
[330884312,1719899440177,-7209.06703356,0.00018625,2]
[330884313,1719899440187,-630.93491385,0.00018632,2]
[330884314,1719899440197,-298.2111887,0.00018658,2]
[330884315,1719899440211,-450.0,0.00018658,2]
[330884316,1719899440222,-450.0,0.00018658,2]
[330884317,1719899440232,-500.0,0.00018664,2]
[330884318,1719899440242,-263.76243268,0.00018667,2]
[330884319,1719899440252,-158.07204069,0.00018676,2]
[330884320,1719899440261,-263.76243268,0.00018688,2]
[330884321,1719899440271,-666.60294918,0.00018692,2]
[330884322,1719899440281,-666.60294918,0.00018693,2]
[330884323,1719899440291,-160.27103972,0.00018696,2]
[330884324,1719899440301,-256.33362355,0.00018696,2]
[330884325,1719899440311,-666.60294918,0.00018697,2]
[330884326,1719899440321,-630.93491385,0.000187,2]
[330884327,1719899440331,-150.93580614,0.00018703,2]
[330884328,1719899440342,-151.12285891,0.00018704,2]
[330884329,1719899440351,-3377.10994187,0.00018757,2]
[330884330,1719899440361,-446.8799,0.00018764,2]
[330884331,1719899440371,-154.43282096,0.00018779,2]
[330884332,1719899440381,-155.60625459,0.00018791,2]
[330884333,1719899440391,-155.94076911,0.00018793,2]
[330884334,1719899440403,-160.27103972,0.00018806,2]
[330884335,1719899440414,-483.15133922,0.00018812,2]
[330884336,1719899440424,-630.93491385,0.00018818,2]
[330884337,1719899440434,-160.27103972,0.0001882,2]
[330884339,1719899440444,-263.76243268,0.00018827,2]
[330884341,1719899440454,-150.93580614,0.00018832,2]
[330884343,1719899440464,-153.82159195,0.00018833,2]
[330884345,1719899440474,-150.0,0.00018836,2]
[330884346,1719899440485,-256.33362355,0.00018847,2]
[330884347,1719899440495,-542.51,0.00018849,30]
[330884348,1719899440505,-155.60625459,0.00018853,2]
[330884349,1719899440516,-630.93491385,0.00018859,2]
[330884350,1719899440526,-160.27103972,0.00018881,2]
[330884351,1719899440536,-155.31871665,0.00018883,2]
[330884352,1719899440546,-166.66666666,0.00018886,2]
[330884353,1719899440556,-230.97232781,0.000189,2]
[330884354,1719899440566,-162.45,0.000189,2]
[330884355,1719899440576,-150.93580614,0.00018901,2]
[330884356,1719899440586,-208.2,0.00018905,2]
[330884357,1719899440596,-107.75747795,0.00018922,2]
[330884358,1719899440621,-53.00019931,0.00018922,2]
[330884359,1719899440631,-630.93491385,0.00018937,2]
[330884360,1719899440641,-256.33362355,0.00018939,2]
[330884361,1719899440651,-175.51921188,0.0001895,2]
[330884362,1719899440662,-64.07785154,0.00018959,2]
[330884363,1719899440675,-244.64300143,0.00018959,2]
[330884364,1719899440685,-244.94793173,0.00018968,2]
[330884365,1719899440697,-11.38569182,0.00018968,2]
[330884366,1719899440707,-572.22647918,0.00019,2]
[330884367,1719899440722,-753.000003,0.00019,2]
[330884368,1719899440734,-5833.09716612,0.00019,2]
[330884369,1719899440744,-197.9796101,0.00019,2]
[330884370,1719899440754,-155.54076417,0.00019,2]
[330884371,1719899440763,-150.93580614,0.00019008,2]
[330884372,1719899440773,-150.93580614,0.00019035,2]
[330884373,1719899440783,-160.75767726,0.00019037,2]
[330884374,1719899440793,-155.31871665,0.0001904,2]
[330884376,1719899440803,-7500.0,0.00019041,2]
[330884377,1719899440813,-25000.0,0.00019041,2]
[330884378,1719899440823,-308.72085297,0.00019057,2]
[330884379,1719899440833,-1494.94298711,0.00019069,2]
[330884380,1719899440843,-666.60294918,0.00019071,2]
[330884381,1719899440852,-9002.74139523,0.00019073,2]
[330884382,1719899440866,-1363.54262393,0.00019073,2]
[330884383,1719899440891,-337.33893767,0.00019073,2]
[330884399,1719899442796,-150.627,0.00017135,2]
[330884400,1719899442805,-179.07314336,0.00019073,2]
[330884401,1719899442900,-660.33561149,0.00019073,2]
[330884402,1719899442999,-269.50157283,0.00019073,2]
[330884409,1719899445710,-1000.0,0.0001844,2]
[330884410,1719899445720,-546.0,0.00018847,2]
[330884411,1719899445730,-4817.65315546,0.00019073,2]
[330884540,1719899447844,-1070.0,0.0001728,2]
[330884541,1719899447854,-12190.29031586,0.00019073,2]
[330884542,1719899447862,-154.43282096,0.00019077,2]
[330884543,1719899447871,-666.60294918,0.0001909,2]
[330884544,1719899447880,-256.33362355,0.0001909,2]
[330884545,1719899447889,-158.07204069,0.00019093,2]
[330884546,1719899447898,-483.15133922,0.00019109,2]
[330884547,1719899447907,-308.72085297,0.00019114,2]
[330884548,1719899447916,-999.99,0.00019114,2]
[330884549,1719899447925,-630.93491385,0.00019131,2]
[330884550,1719899447934,-154.79295095,0.00019135,2]
[330884551,1719899447947,-666.60294918,0.00019152,2]
[330884552,1719899447957,-159.6745437,0.00019163,2]
[330884553,1719899447966,-155.31871665,0.00019169,2]
[330884554,1719899447975,-2000.0,0.00019178,2]
[330884555,1719899447985,-250.0,0.00019178,2]
[330884556,1719899447994,-279.56,0.00019178,2]
[330884557,1719899448005,-163.001551,0.00019178,2]
[330884558,1719899448015,-327.15,0.0001918,2]
[330884559,1719899448026,-327.15,0.0001918,2]
[330884560,1719899448036,-327.15,0.0001918,2]
[330884561,1719899448046,-327.15,0.0001918,2]
[330884562,1719899448055,-327.15,0.0001918,2]
[330884563,1719899448064,-327.15,0.0001918,2]
[330884564,1719899448073,-327.15,0.0001918,2]
[330884565,1719899448083,-1000.0,0.00019183,2]
[330884566,1719899448091,-666.60294918,0.00019199,2]
[330884567,1719899448100,-753.82692846,0.000192,7]
[330884568,1719899448109,-160.27103972,0.00019201,2]
[330884569,1719899448119,-666.60294918,0.00019202,2]
[330884570,1719899448127,-208.2,0.00019204,2]
[330884571,1719899448136,-151.0,0.00019205,2]
[330884572,1719899448146,-152.232355,0.00019205,2]
[330884573,1719899448155,-150.93580614,0.00019206,2]
[330884574,1719899448164,-550.0,0.00019206,2]
[330884575,1719899448174,-662.51328359,0.00019206,2]
[330884576,1719899448183,-800.0,0.00019212,2]
[330884577,1719899448192,-150.13247159,0.00019212,2]
[330884578,1719899448203,-155.31871665,0.00019221,2]
[330884579,1719899448211,-339.34174154,0.00019229,2]
[330884580,1719899448220,-160.27103972,0.00019282,2]
[330884581,1719899448230,-630.93491385,0.00019295,2]
[330884582,1719899448239,-255.56653683,0.00019299,2]
[330884583,1719899448248,-366.025366,0.00019299,2]
[330884584,1719899448257,-227.09542874,0.00019299,2]
[330884585,1719899448266,-305.49353727,0.00019299,2]
[330884586,1719899448275,-154.69649,0.00019303,2]
[330884587,1719899448284,-151.0,0.00019303,2]
[330884588,1719899448293,-151.0,0.00019303,2]
[330884589,1719899448303,-483.15133922,0.00019303,2]
[330884590,1719899448312,-166.66666666,0.00019304,2]
[330884591,1719899448321,-158.07204069,0.00019305,2]
[330884592,1719899448331,-160.27103972,0.00019307,2]
[330884593,1719899448340,-263.76243268,0.0001933,2]
[330884594,1719899448349,-151.19007493,0.00019348,2]
[330884595,1719899448358,-308.72085297,0.0001935,2]
[330884596,1719899448367,-166.66666666,0.00019351,2]
[330884597,1719899448377,-724.99466785,0.00019354,2]
[330884598,1719899448386,-684.82466063,0.00019354,2]
[330884599,1719899448395,-151.29064821,0.00019362,2]
[330884600,1719899448405,-308.72085297,0.00019379,2]
[330884601,1719899448415,-155.31871665,0.00019386,2]
[330884602,1719899448424,-155.31871665,0.00019389,2]
[330884603,1719899448433,-622.93075988,0.00019389,2]
[330884604,1719899448442,-256.33362355,0.00019394,2]
[330884605,1719899448452,-154.34757266,0.00019401,2]
[330884606,1719899448461,-666.60294918,0.00019403,2]
[330884607,1719899448470,-256.33362355,0.00019421,2]
[330884608,1719899448479,-150.13247159,0.00019433,2]
[330884609,1719899448488,-151.29064821,0.00019448,2]
[330884610,1719899448498,-270.30252486,0.00019451,2]
[330884611,1719899448507,-328.71074461,0.00019451,2]
[330884612,1719899448516,-171.04080637,0.00019451,2]
[330884613,1719899448526,-434.69356907,0.00019451,2]
[330884614,1719899448535,-291.00602126,0.00019451,2]
[330884615,1719899448543,-369.29403955,0.00019451,2]
[330884616,1719899448553,-151.19007493,0.00019452,2]
[330884617,1719899448562,-308.72085297,0.00019455,2]
[330884618,1719899448571,-161.2695713,0.00019462,2]
[330884619,1719899448580,-150.93580614,0.00019467,2]
[330884620,1719899448589,-263.76243268,0.00019467,2]
[330884621,1719899448598,-151.24840017,0.00019469,2]
[330884622,1719899448607,-152.0,0.00019484,3]
[330884623,1719899448616,-483.15133922,0.00019485,2]
[330884624,1719899448625,-500.0,0.00019486,2]
[330884625,1719899448634,-166.66666666,0.00019489,2]
[330884626,1719899448643,-154.46875619,0.00019495,2]
[330884627,1719899448652,-2500.0,0.000195,2]
[330884628,1719899448661,-630.93491385,0.00019501,2]
[330884629,1719899448670,-208.2,0.00019504,2]
[330884630,1719899448679,-154.43282096,0.00019524,2]
[330884631,1719899448688,-483.15133922,0.00019529,2]
[330884632,1719899448697,-154.34757266,0.00019532,2]
[330884633,1719899448706,-166.66666666,0.00019547,2]
[330884634,1719899448714,-155.07098731,0.00019548,2]
[330884635,1719899448723,-475.58844469,0.00019548,2]
[330884636,1719899448732,-331.63513846,0.00019548,2]
[330884637,1719899448742,-155.4682522,0.00019548,2]
[330884638,1719899448750,-327.15,0.00019553,2]
[330884639,1719899448760,-151.12285891,0.00019556,2]
[330884640,1719899448769,-1031.65641988,0.00019563,2]
[330884641,1719899448778,-155.0,0.00019565,3]
[330884642,1719899448787,-155.036185,0.00019567,2]
[330884643,1719899448796,-40891.01699345,0.00019569,2]
[330884644,1719899448808,-2580.0,0.00019569,2]
[330884645,1719899448827,-7384.01856,0.00019569,2]
[330884646,1719899448837,-364.40324563,0.00019569,2]
[330884649,1719899691920,76448.2,0.00011199,2]
[330884650,1719899691943,3153.678421,0.00011199,2]
[330884659,1719899761521,300.41202061,0.00011199,2]
[330884660,1719899778073,2130.31749559,0.00011199,2]
[330884661,1719899778825,2000.0,0.00022,120]
[330884669,1719900196611,5578.71089976,0.00011199,2]
[330884671,1719900276488,300.41202061,0.00011199,2]
[330884672,1719900371001,300.41202061,0.00011199,2]
[330884673,1719900385995,300.41202061,0.00011199,2]
[330884675,1719900505153,300.41202061,0.00011199,2]
[330884677,1719900628069,955.85753929,0.00011199,2]
[330884688,1719900631764,-724.81,0.00013161,2]
[330884690,1719900631775,-366.025366,0.00013472,2]
[330884691,1719900631787,-300.41704891,0.00013574,2]
[330884692,1719900631798,-461.71872744,0.00013849,2]
[330884693,1719900631813,-13.88189928,0.00013849,2]
[330884694,1719900631827,-156.63349557,0.00013849,2]
[330884695,1719900631839,-158.76638733,0.00013889,2]
[330884696,1719900631848,-185.01057453,0.00013898,2]
[330884697,1719900631861,-114.98942547,0.00013898,2]
[330884698,1719900631871,-1000.0,0.00013899,2]
[330884699,1719900631880,-8116.3902122,0.00013899,2]
[330884700,1719900631892,-3880.42848261,0.00013899,2]
[330884701,1719900631909,-331.5,0.00013899,2]
[330884702,1719900631922,-29067.71130519,0.00013899,2]
[330884703,1719900631932,-5911.81145952,0.00013899,2]